Cogmind - Beta 13 @@@ ROGUE MODE // 2024.04.20 @ 00:43:48 Player: GreyJackal Result: Destroyed by D-53 Grenadier with Mini Grenade Launcher Performance ------------- Evolutions (0) 0 Regions Visited (4) 800 Robots Destroyed (4) 20 Value Destroyed (64) 64 Prototype IDs (24) 480 Alien Tech Used (0) 0 Bonus (300) 300 TOTAL SCORE: 1664 Bonus ------- Aligned with FarCom 300 Cogmind --------- Core Integrity 0/250 Matter 248/300 Energy 250/250 System Corruption 0% Temperature Cool (0) Movement Core (350) Ox6 Location -9/Mines Parts ------- > --- POWER (1) -------- Ion Engine > --- PROPULSION (2) --- (None) > --- UTILITY (2) ------ Modified TNC Sensor Drone Bay (19/20) > --- WEAPON (2) ------- (None) > --- INVENTORY (5) ---- Compact Matter Pod (150) Peak State ------------ > --- POWER ------------ Ion Engine > --- PROPULSION ------- Light Treads Light Treads > --- UTILITY ---------- Modified TNC Sensor Drone Bay > --- WEAPON ----------- Assault Rifle Assault Rifle > --- INVENTORY -------- Ion Engine Compact Matter Pod Grenade Launcher [Rating: 19] Favorites ----------- Power Ion Engine Engine Ion Engine Propulsion Light Treads Treads Light Treads Utility Sensor Drone Bay Device Sensor Drone Bay Storage Compact Matter Pod Processor Modified TNC Weapon Assault Rifle Ballistic Gun Assault Rifle Launcher Rocket Launcher Build | -11 -10 -10 -10 -9 ------- Run | Yrd Mat Min Exi Min Slots Evolved . | . . . . . Power . | . . . . . Propulsion . | . . . . . Utility . | . . . . . Weapon . | . . . . . Parts Attached 14 | 5 . 2 1 6 Power 2 | 1 . . . 1 Engine 2 | 1 . . . 1 Core . | . . . . . Reactor . | . . . . . Propulsion 2 | 2 . . . . Treads 2 | 2 . . . . Leg . | . . . . . Wheel . | . . . . . Hover . | . . . . . Flight . | . . . . . Utility 3 | . . 2 1 . Device 1 | . . 1 . . Storage 1 | . . 1 . . Processor 1 | . . . 1 . Hackware . | . . . . . Protection . | . . . . . Artifact . | . . . . . Weapon 7 | 2 . . . 5 Energy Gun . | . . . . . Energy Cannon . | . . . . . Ballistic Gun 4 | 2 . . . 2 Ballistic Cannon . | . . . . . Launcher 3 | . . . . 3 Special Weapon . | . . . . . Impact Weapon . | . . . . . Slashing Weapon . | . . . . . Piercing Weapon . | . . . . . Special Melee Weapon . | . . . . . Unidentified Prototypes 1 | . . 1 . . Parts Lost 7 | . . . . 7 Power 1 | . . . . 1 Propulsion 2 | . . . . 2 Utility . | . . . . . Weapon 4 | . . . . 4 Highest Loss Streak 3 | . . . . 3 To Critical Strikes . | . . . . . Average Slot Usage (%) 90 | . 71 89 100 84 Engine 14 | . 14 14 14 14 Treads 25 | . 28 28 28 16 Device 9 | . . 4 14 14 Storage 7 | . . 13 9 . Processor 4 | . . . 4 14 Ballistic Gun 25 | . 28 28 28 18 Launcher 1 | . . . . 7 Naked Turns . | . . . . . Heaviest Build 25 | 9 9 24 24 25 Greatest Support 40 | 40 40 40 40 40 Greatest Overweight (x) 6 | . . . . 6 Average Overweight (x) . | . . . . . Largest Inventory Capacity 5 | 5 5 5 5 5 Average Capacity 5 | 5 5 5 5 5 Most Carried 4 | 4 3 3 3 3 Average Carried 2 | 1 1 2 2 1 Final Capacity 5 | 5 5 5 5 5 Final Carried 3 | 1 2 2 3 1 Class Distribution -------------------- 100% | Mutant Dominant Class ---------------- Mutant | -10/Materials Mutant | -10/Mines Mutant | -10/Exiles Mutant | -9/Mines Resources | -11 -10 -10 -10 -9 ----------- Run | Yrd Mat Min Exi Min Matter Collected 449 | 174 88 10 . 177 Remotely . | . . . . . Salvage Created 169 | . 44 . . 125 Parts 5 | . 1 . . 4 Haulers Intercepted . | . . . . . Recyclers Shooed . | . . . . . Parts Field Recycled . | . . . . . Retrieved Matter . | . . . . . Parts Self-Destructed . | . . . . . Prevented . | . . . . . Kills | -11 -10 -10 -10 -9 ------- Run | Yrd Mat Min Exi Min Combat Hostiles Destroyed 18 | . 1 . . 17 Guns 10 | . 1 . . 9 AOE 8 | . . . . 8 Classes Destroyed 3 | . 1 . . 2 Swarmer 3 | . . . . 3 Grunt 1 | . 1 . . . Assembled 14 | . . . . 14 Best Kill Streak 15 | . 1 . . 15 Combat Bots Only 15 | . 1 . . 15 Max Kills in Single Turn 4 | . 1 . . 4 Gunslinging 1 | . . . . 1 Exploded 4 | . . . . 4 Melee . | . . . . . Uniques/NPCs Destroyed . | . . . . . Combat | -11 -10 -10 -10 -9 -------- Run | Yrd Mat Min Exi Min Hostile Shots Fired 87 | . 2 . . 85 Missed 26 | . . . . 26 Damage Taken 1205 | . 23 . . 1182 Core 262 | . . . . 262 Absorbed by Shields . | . . . . . Core Remaining (%) 100 | 100 . . . . Volleys Fired 27 | . 2 . . 25 Largest 2 | . 2 . . 2 Hottest 53 | . 40 . . 53 Shots Fired 48 | . 4 . . 44 Gun 41 | . 4 . . 37 Cannon . | . . . . . Launcher 7 | . . . . 7 Special . | . . . . . Kinetic 41 | . 4 . . 37 Thermal . | . . . . . Explosive 7 | . . . . 7 Electromagnetic . | . . . . . Robot Hit Streak 4 | . 2 . . 4 Robot Miss Streak 4 | . 2 . . 4 Penetration Max . | . . . . . Secondary Targets 5 | . . . . 5 Max Gunslinging Chain 1 | . . . . 1 Shots Hit Robots 25 | . 2 . . 23 Core Hits 41 | . 2 . . 39 Critical Kills . | . . . . . Critical Parts Destroyed . | . . . . . Critical Strikes . | . . . . . Melee Attacks . | . . . . . Impact . | . . . . . Slashing . | . . . . . Piercing . | . . . . . Sneak Attacks . | . . . . . Combat Hostiles . | . . . . . Follow-up Attacks . | . . . . . Damage Inflicted 907 | . 22 . . 885 Guns 308 | . 22 . . 286 Cannons . | . . . . . Explosions 599 | . . . . 599 Melee . | . . . . . Ramming . | . . . . . Kinetic 308 | . 22 . . 286 Thermal . | . . . . . Explosive 599 | . . . . 599 Electromagnetic . | . . . . . Impact . | . . . . . Slashing . | . . . . . Piercing . | . . . . . Highest Corruption . | . . . . . Average Corruption . | . . . . . Corruption Purged . | . . . . . Corruption Blocked . | . . . . . Overload Shots . | . . . . . Overflow Damage 16 | . . . . 16 Projectiles . | . . . . . Explosions 16 | . . . . 16 Melee . | . . . . . Knockbacks . | . . . . . Impact . | . . . . . Kinetic . | . . . . . Secondary . | . . . . . Self-Inflicted Damage 75 | . . . . 75 Shots 2 | . . . . 2 Rammed . | . . . . . Targets Rammed . | . . . . . Kicked . | . . . . . Crushed . | . . . . . Highest Temperature 24 | . . . . 24 Average Temperature 13 | . . . . 13 Received Heat Transfer 172 | . 12 . . 160 Siege Activations . | . . . . . Robots Corrupted . | . . . . . Combat Hostiles . | . . . . . Parts Fried . | . . . . . Impact Corruptions . | . . . . . Robots Melted . | . . . . . Combat Hostiles . | . . . . . Parts Melted . | . . . . . Heat Transferred . | . . . . . Parts Sabotaged . | . . . . . Parts Stolen . | . . . . . Parts Stripped . | . . . . . Power Chain Reactions . | . . . . . Alert | -11 -10 -10 -10 -9 ------- Run | Yrd Mat Min Exi Min Peak Influence 94 | . 24 9 . 94 Initial 9 | . . 9 . . Average 25 | . 6 9 . 63 Maximum Alert Level . | . . . . . Low Security (%) 100 | 100 100 100 . 100 Level 1 . | . . . . . Level 2 . | . . . . . Level 3 . | . . . . . Level 4 . | . . . . . Level 5 . | . . . . . High Security . | . . . . . Max Security . | . . . . . Squads Dispatched 1 | . 1 . . . Investigation . | . . . . . Extermination . | . . . . . Reinforcement 1 | . 1 . . . Assault . | . . . . . Garrison . | . . . . . Intercept . | . . . . . Searches Triggered . | . . . . . Construction Impeded . | . . . . . Haulers Reinforced . | . . . . . Active Scanning Responses . | . . . . . Cargo Convoy Interrupts . | . . . . . Stealth | -11 -10 -10 -10 -9 --------- Run | Yrd Mat Min Exi Min Distress Signals 1 | . 1 . . . Communications Jammed . | . . . . . Distress Signals . | . . . . . Times Spotted 23 | . 2 . . 21 Peak Tracking Total 10 | . 4 . . 10 Tactical Retreats . | . . . . . Traps | -11 -10 -10 -10 -9 ------- Run | Yrd Mat Min Exi Min Traps Triggered . | . . . . . Indirectly . | . . . . . Trap Hack Attempts . | . . . . . Triggered . | . . . . . Disarmed . | . . . . . Reprogrammed . | . . . . . Reused . | . . . . . Traps Extracted . | . . . . . Installed . | . . . . . Triggered . | . . . . . Machines | -11 -10 -10 -10 -9 ---------- Run | Yrd Mat Min Exi Min Machines Disabled . | . . . . . Max in Single Turn . | . . . . . Machines Repaired . | . . . . . Machines Dismantled . | . . . . . Machines Sabotaged . | . . . . . Overloaded Fab Kills . | . . . . . Hacking | -11 -10 -10 -10 -9 --------- Run | Yrd Mat Min Exi Min Machines Accessed 5 | . 2 1 2 . Terminals 2 | . 2 . . . Fabricators . | . . . . . Repair Stations . | . . . . . Recycling Units . | . . . . . Scanalyzers . | . . . . . Garrison Access . | . . . . . Total Hacks 15 | . 4 1 10 . Successful 13 | . 2 1 10 . Failed 2 | . 2 . . . Catastrophic . | . . . . . Database Lockouts . | . . . . . Manual 1 | . . . 1 . Terminals 4 | . 4 . . . Fabricators . | . . . . . Repair Stations . | . . . . . Recycling Units . | . . . . . Scanalyzers . | . . . . . Garrison Access . | . . . . . Terminal Hacks 13 | . 2 1 10 . Record 10 | . 1 . 9 . Open Door 1 | . . 1 . . Dispatch Records 1 | . 1 . . . Derelict Proto ID Bank 1 | . . . 1 . Fabricator Hacks . | . . . . . Repair Station Hacks . | . . . . . Recycling Unit Hacks . | . . . . . Scanalyzer . | . . . . . Garrison Access Hacks . | . . . . . Unauthorized Hacks . | . . . . . Terminals . | . . . . . Fabricators . | . . . . . Repair Stations . | . . . . . Recycling Units . | . . . . . Scanalyzers . | . . . . . Garrison Access . | . . . . . Data Cores Recovered . | . . . . . Used . | . . . . . Hacking Detections 2 | . 2 . . . Full Trace Events . | . . . . . Feedback Events . | . . . . . Feedback Blocked . | . . . . . Robot Schematics Acquired . | . . . . . Robots Built . | . . . . . Authchips . | . . . . . Time . | . . . . . Total Robot Build Rating . | . . . . . Part Schematics Acquired . | . . . . . Parts Built . | . . . . . Authchips . | . . . . . Time . | . . . . . Total Part Build Rating . | . . . . . Parts Repaired . | . . . . . Time . | . . . . . Parts Recycled . | . . . . . Recycled Matter . | . . . . . Retrieved Matter . | . . . . . Retrieved Components . | . . . . . Parts Scanalyzed . | . . . . . Part Schematics Acquired . | . . . . . Parts Damaged . | . . . . . Bothacking | -11 -10 -10 -10 -9 ------------ Run | Yrd Mat Min Exi Min Used RIF Installer . | . . . . . Robots Hacked . | . . . . . Non-combat . | . . . . . Combat . | . . . . . Robot Hacks Applied . | . . . . . Relay Couplers Released . | . . . . . Fabnet Peak Effective % . | . . . . . Robots Rewired . | . . . . . Allies Hacked . | . . . . . Hacks Repelled . | . . . . . Allies | -11 -10 -10 -10 -9 -------- Run | Yrd Mat Min Exi Min Total Allies . | . . . . . Largest Group . | . . . . . Highest-Rated Group . | . . . . . Highest-Rated Ally . | . . . . . Total Orders . | . . . . . Ally Attacks . | . . . . . Total Damage . | . . . . . Kills . | . . . . . Allies Corrupted . | . . . . . Allies Melted . | . . . . . Intel | -11 -10 -10 -10 -9 ------- Run | Yrd Mat Min Exi Min Robot Analysis Total . | . . . . . Derelict Logs Recovered 1 | . . 1 . . Drone Launches 1 | . . . . 1 Drone Recoveries . | . . . . . Exploration | -11 -10 -10 -10 -9 ------------- Run | Yrd Mat Min Exi Min Turns Passed 1228 | 60 151 305 472 240 Spaces Moved 643 | 40 90 155 288 70 Core 17 | 16 . . . 1 Treads 626 | 24 90 155 288 69 Legs . | . . . . . Wheels . | . . . . . Hover . | . . . . . Flight . | . . . . . Fastest Speed 50 | 50 160 160 160 160 Average Speed 165 | 116 160 160 160 231 Slowest Speed 350 | 160 160 160 160 350 Overloaded Moves . | . . . . . Propulsion Burnouts . | . . . . . Robots Hopped . | . . . . . Cave-ins Triggered . | . . . . . Exploration Rate (%) 27 | 4 25 44 42 21 Regions Visited 4 Branch Regions 3 Pre-discovered Areas . | . . . . . Known Exits Taken . | . . . . . Unknown Exits Taken 4 | 1 1 1 1 . Scrap Searched . | . . . . . Spaces Dug . | . . . . . Terrain Destroyed 46 | . . . . 46 Melee . | . . . . . Projectile . | . . . . . AOE 46 | . . . . 46 Terrain Rammed . | . . . . . Walls Destroyed . | . . . . . Machines Disabled . | . . . . . Actions | -11 -10 -10 -10 -9 --------- Run | Yrd Mat Min Exi Min Total 765 | 54 94 212 299 106 Wait 71 | 4 . 54 10 3 Move 639 | 39 89 154 287 70 Hop . | . . . . . Pick Up 12 | 6 2 2 1 1 Fast Attach . | . . . . . Attach 11 | 5 . 2 . 4 Detach 1 | . . . . 1 Swap 3 | . . . 1 2 Drop 1 | . 1 . . . Fire 27 | . 2 . . 25 Melee . | . . . . . Ram . | . . . . . Kick . | . . . . . Crush . | . . . . . Escape Stasis . | . . . . . Rewire . | . . . . . Trap . | . . . . . Miscellaneous . | . . . . . Route ------- -11/Scrapyard -10/Materials -10/Mines -10/Exiles -9/Mines History --------- Turn | Location | Event 7 | -11/Scrapyard | Discovered new exit (range 15) 61 | -11/Scrapyard | Entered Materials 193 | -10/Materials | Discovered new exit (range 12) 212 | -10/Materials | Entered Mines 317 | -10/Mines | Build established: Mutant 411 | -10/Mines | Learned 2 Materials zone layouts 414 | -10/Mines | Found the Drone Emporium 425 | -10/Mines | Found Prototype Device 426 | -10/Mines | Identified Sensor Drone Bay 510 | -10/Mines | Deemed a non-threat by the Exiles lab entrance 510 | -10/Mines | Discovered new exit (range 5) 517 | -10/Mines | Entered Exiles 557 | -10/Exiles | Met 8R-AWN 585 | -10/Exiles | Met EX-HEX 647 | -10/Exiles | Met EX-BIN 675 | -10/Exiles | Aligned with FarCom system 676 | -10/Exiles | Given EX-Vault access code 811 | -10/Exiles | Opened EX-Vault 823 | -10/Exiles | Found Modified TNC 861 | -10/Exiles | Warned to stay clear of 0b10 Research branches 968 | -10/Exiles | Discovered new exit (range 14) 989 | -10/Exiles | Left Exiles lab with Modified TNC 989 | -10/Exiles | Entered Mines 996 | -9/Mines | Received a Rocket Launcher from a helpful Derelict 997 | -9/Mines | Assembled infested the area 1043 | -9/Mines | Core integrity fell below 50% 1057 | -9/Mines | Lost 3 parts (1p1n1w) 1071 | -9/Mines | Destroyed 15 combat bots 1228 | -9/Mines | Core integrity fell below 20% 1229 | -9/Mines | Destroyed by D-53 Grenadier with Mini Grenade Launcher Last Messages --------------- U-05 Engineer builds a Wall. Destroyed Asb. Hover Unit. U-05 Engineer builds a Wall. The unstable cave ceiling collapses. as-81043 destroyed. Switching to secondary target: as-26201. Assault Rifle destroyed. as-26201 destroyed. U-05 Engineer lays Concrete. The unstable cave ceiling collapses. Acquired 15 matter. U-05 Engineer builds a Wall. Acquired 5 matter. U-05 Engineer lays Concrete. Lgt. Treads destroyed. Assault Rifle destroyed. Rocket Launcher destroyed. The unstable cave ceiling collapses. Sensor Drone released from Sensor Drone Bay. Sensor Drone destroyed. Map ----- +----------------------------------------------------+ | ???????????????????????????????####?????????????? | | ?????????????????????????###???# ##????????????? | | ????????????????????????## ##### #????????????? | | ???????????????????????## #????????????? | | ??????????????????????## #????????????? | | ????????????????????### ##### #????????????? | | ???????????????????## # # * #????????????? | | ???????????????????# # #????????????? | | ????????????##?????# * ##????????????? | | ????????????? ????# % #?????????????? | | ?????????????? ????# # ### #?????????????? | | ??????????????# ???# %# #?# #?????????????? | | ??????????????# ??## # #?# #?????????????? | | ??????????????# #### ###?# #?????????????? | | ??????????????# % ###???# ?u???????????? | | ??????????????# ##?????###?????????????? | | ??????????????##### % #??????????????????????? | | ?????????????????## !% #??????????????????????? | | ????????????????## = #??????????????????????? | | ???????????????## #??????????????????????? | | ??????????????## ########???????????????? | | ????????k???### < a # ##??????????????? | | ???????????## #??????????????? | | ???????????# ## #??????????????? | | ???????????# ### #??????????????? | | ???????????## ## @ ##??????????????? | | ????????????### u ## ##???????????????? | | ??????????????## # #????????????????? | | ??????????????# d ##????????????????? | | ??????????????## ##?????????????????? | | ??????????# r d ####??????????????????? | | ??????????###### ###?????????????????????? | | ??????????????## ##???????????????????????? | | ???????????????# ?????????????????????????? | | ???????????????## ####?????????????????????????? | | ????????????????###?????????????????????????????? | | ????????????????????????????????????????????????? | | ????????????????????????????????????????????????? | | ????????????????????????????????????????????????? | | ????????????????????????????????????????????????? | | ????????????????????????????????????????????????? | | ????????????????????????????????????????????????? | | ????????????????????????????????????????????????? | | ????????????????????????????????????????????????? | | ????????????????????????????????????????????????? | | ????????????????????????????????????????????????? | | ????????????????????????????????????????????????? | | ????????????????????????????????????????????????? | | ????????????????????????????????????????????????? | | ????????????????????????????????????????????????? | +----------------------------------------------------+ Best States ------------- Heat Dissipation 25 Energy Generation 10 Energy Capacity 250 Matter Stores 450 Matter Capacity 450 Sight Range 16 Terrain Scan Density 10 Evasion (%) 50 Recoil Reduction 2 Item Schematics ----------------- None Robot Schematics ------------------ None Fabricated ------------ Nothing Alien Tech Used ----------------- None Achievements -------------- Let's See Who's Tougher Challenges ------------ None Game ------ Seed ScrapDisruptionHammer Manual? 0 Play Time 00:12:33 Cumulative 6.1 hours Start 2024.04.20 @ 00:32:48 End 2024.04.20 @ 00:43:48 Sessions 1 Manual Loads 0 Difficulty Rogue Special Mode None Game No. 13 Rogue 13 Adventurer 0 Explorer 0 Win Type - Total 0 Types 0/0/0/0/0/0/0/0/0 Lore% 13 Gallery% 13 Achievement% 14 Wizard Run 0 Options --------- Layout 1 ASCII 0 Keyboard 0 Movement Mouse Keybinds 0 Fullscreen 1 Font 32/SmallcapsGlow Map View 50x35 Zoom Use 0% Tactical HUD 0 Map Filters NONE Filters NONE Steam 1 RUN: b87310c6-b466-490a-a5ee-9bbb3352dcc5